Cogmind - Beta 16.1 @@@ ROGUE MODE // 2026.03.12 @ 13:56:51 Player: SunShine214 Result: Destroyed by Y-54 Guardian with Gatling Laser Performance ------------- Evolutions (3) 1500 Regions Visited (5) 1000 Robots Destroyed (114) 570 Value Destroyed (3410) 3410 Prototype IDs (7) 140 Alien Tech Used (0) 0 Bonus (48) 48 TOTAL SCORE: 6668 Bonus ------- High Alert Combat Kills 48 Cogmind --------- Core Integrity 0/700 Matter 23/300 Energy 29/100 System Corruption 8% Temperature Cool (6) Movement Core (150) Ox2 Location -7/Storage Parts ------- > --- POWER (2) -------- (None) > --- PROPULSION (3) --- (None) > --- UTILITY (5) ------ Armor Integrity Analyzer > --- WEAPON (3) ------- Cooled Plasma Cannon > --- INVENTORY (5) ---- VTOL Module Large Storage Unit Hacking Suite Hacking Suite Gauss Rifle Peak State ------------ > --- POWER ------------ Light Ion Engine Improved Deuterium Engine > --- PROPULSION ------- Advanced Treads Advanced Treads Advanced Treads > --- UTILITY ---------- Large Storage Unit Armor Integrity Analyzer Energy Filter Weapon Cycler Improved Weapon Shielding > --- WEAPON ----------- Advanced Assault Cannon Heavy Rocket Launcher Katana > --- INVENTORY -------- Armored Treads Armored Treads VTOL Module VTOL Module Large Storage Unit Hacking Suite Hacking Suite Hacking Suite Hacking Suite Minigun Gauss Rifle Heavy Rocket Launcher Heavy Rocket Launcher Heavy Rocket Launcher Powered Hammer [Rating: 45] Favorites ----------- Power Heavy Ion Engine Engine Heavy Ion Engine Propulsion Light Treads Treads Light Treads Flight Unit Improved Flight Unit Utility Large Storage Unit Device Sensor Array Storage Large Storage Unit Processor Signal Interpreter Protection Hardened Medium Armor Plating Weapon Ion Cannon Energy Gun Medium Laser Energy Cannon Ion Cannon Ballistic Gun Gauss Rifle Ballistic Cannon Advanced Assault Cannon Launcher Heavy Rocket Launcher Special Weapon Mining Laser Impact Weapon Hammer Slashing Weapon Katana Build | -11 -10 -9 -8 -7 -7 ------- Run | Yrd Mat Mat Mat Fac Sto Slots Evolved 6 | . . 2 2 2 . Power 1 | . . . . 1 . Propulsion 1 | . . . 1 . . Utility 3 | . . 2 1 . . Weapon 1 | . . . . 1 . Parts Attached 76 | 7 4 18 15 5 27 Power 9 | 1 . 1 1 1 5 Engine 9 | 1 . 1 1 1 5 Core . | . . . . . . Reactor . | . . . . . . Propulsion 18 | 2 1 3 4 . 8 Treads 17 | 2 1 3 3 . 8 Leg . | . . . . . . Wheel . | . . . . . . Hover . | . . . . . . Flight 1 | . . . 1 . . Utility 23 | 1 2 6 5 1 8 Device 8 | . 1 1 2 1 3 Storage 3 | 1 1 1 . . . Processor 3 | . . 1 1 . 1 Hackware . | . . . . . . Protection 9 | . . 3 2 . 4 Artifact . | . . . . . . Weapon 26 | 3 1 8 5 3 6 Energy Gun 2 | 1 . 1 . . . Energy Cannon 6 | . . 3 1 1 1 Ballistic Gun 4 | 2 . 1 . 1 . Ballistic Cannon 1 | . . . . . 1 Launcher 9 | . . 2 3 1 3 Special Weapon 1 | . 1 . . . . Impact Weapon 2 | . . 1 . . 1 Slashing Weapon 1 | . . . 1 . . Piercing Weapon . | . . . . . . Special Melee Weapon . | . . . . . . Unidentified Prototypes 7 | . . 2 2 1 2 Parts Lost 30 | . . 3 2 . 25 Power 5 | . . . . . 5 Propulsion 3 | . . . . . 3 Utility 14 | . . 2 1 . 11 Weapon 8 | . . 1 1 . 6 Highest Loss Streak 9 | . . 1 1 . 9 To Critical Strikes . | . . . . . . Average Backups 13 | . 7 14 14 15 14 Power 1 | . . 1 1 2 . Propulsion 2 | . 1 2 2 2 2 Utility 4 | . 2 3 4 5 6 Weapon 5 | . 3 6 6 5 5 Tool/Special . | . . . . . . Unused Backups 21 | . 2 2 3 2 12 Power 2 | . . 1 . . 1 Propulsion 3 | . . 1 . . 2 Utility 8 | . 2 . 1 . 5 Weapon 8 | . . . 2 2 4 Tool/Special . | . . . . . . Average Slot Usage (%) 94 | . 97 97 96 92 90 Engine 11 | . 14 11 9 8 12 Treads 23 | . 28 22 26 23 21 Device 10 | . 11 7 15 15 9 Storage 9 | . 14 11 9 7 6 Processor 7 | . . 10 9 7 6 Protection 8 | . . 13 9 7 7 Energy Gun 2 | . 14 2 . . . Energy Cannon 7 | . . 10 12 10 4 Ballistic Gun 3 | . 11 . . 6 3 Launcher 1 | . . 1 2 . 2 Impact Weapon 3 | . . 7 . . 2 Slashing Weapon 2 | . . . 2 4 5 Peak Build Rating 45 | 6 8 16 26 34 45 Average Rating 22 | 4 7 13 22 31 37 On Entrance 14 | . 6 8 13 26 34 Avg Prop Armor Cover (%) . | . . . . . . Naked Turns . | . . . . . . Heaviest Build 67 | 12 28 43 52 57 67 Greatest Support 66 | 40 40 40 60 60 66 Greatest Overweight (x) 5 | . . 1 . . 5 Average Overweight (x) . | . . . . . . Largest Inventory Capacity 15 | 8 15 15 15 15 15 Average Capacity 14 | 5 10 15 15 15 14 Most Carried 15 | 1 15 15 15 15 15 Average Carried 13 | . 7 14 14 14 14 Final Capacity 15 | 8 15 15 15 15 5 Final Carried 15 | 1 15 15 15 15 5 Class Distribution -------------------- 91% | Mutant 4% | Skirmisher 3% | Scavenger-Skirmisher Dominant Class ---------------- Mutant | -10/Materials Mutant | -9/Materials Mutant | -8/Materials Mutant | -7/Factory Mutant | -7/Storage Resources | -11 -10 -9 -8 -7 -7 ----------- Run | Yrd Mat Mat Mat Fac Sto Matter Collected 1544 | 154 145 274 313 154 504 Remotely . | . . . . . . Salvage Created 3500 | . 129 1017 648 114 1592 Parts 209 | . 6 79 43 11 70 Haulers Intercepted 7 | . . 3 2 . 2 Recyclers Shooed 8 | . 1 2 1 2 2 Parts Field Recycled . | . . . . . . Retrieved Matter . | . . . . . . Parts Self-Destructed . | . . . . . . Prevented . | . . . . . . Parts Restored . | . . . . . . Kills | -11 -10 -9 -8 -7 -7 ------- Run | Yrd Mat Mat Mat Fac Sto Combat Hostiles Destroyed 70 | . 3 22 11 1 33 Melee 6 | . . 2 1 . 3 Guns 12 | . 3 4 . 1 4 Cannons 13 | . . 5 2 . 6 AOE 34 | . . 10 7 . 17 Classes Destroyed 16 | . 2 8 1 1 4 Worker 5 | . . 2 . . 3 Builder 9 | . . 1 5 . 3 Tunneler 1 | . . . . 1 . Hauler 7 | . . 3 2 . 2 Recycler 7 | . . 2 2 . 3 Mechanic 1 | . . . . . 1 Operator 7 | . 1 3 . 2 1 Watcher 7 | . . 4 2 . 1 Swarmer 11 | . . 11 . . . Grunt 37 | . 3 7 8 1 18 Brawler 1 | . . . . . 1 Duelist 2 | . . 1 . . 1 Protector 1 | . . . . . 1 Sentry 12 | . . 3 2 . 7 Hunter 4 | . . . 1 . 3 Programmer 2 | . . . . . 2 Best Kill Streak 10 | . 2 10 10 2 8 Combat Bots Only 7 | . 2 7 4 1 4 Max Kills in Single Turn 4 | . 1 4 3 1 3 Gunslinging . | . . . . . . Exploded 4 | . . 4 2 . 2 Melee 1 | . . 1 1 . 1 Uniques/NPCs Destroyed . | . . . . . . Combat | -11 -10 -9 -8 -7 -7 -------- Run | Yrd Mat Mat Mat Fac Sto Hostile Shots Fired 685 | . 19 70 57 15 524 Missed 205 | . 2 19 13 4 167 Hits 480 | . 17 51 44 11 357 Melee 15 | . . 2 . . 13 Projectile 465 | . 17 49 44 11 344 Critical Strikes 9 | . . 2 2 . 5 Damage Taken 6044 | . 203 704 655 170 4312 Core 990 | . 34 128 120 . 708 Absorbed by Shields . | . . . . . . Redirected to Shielding 131 | . . 80 4 . 47 Regen/Repaired (Parts) 15 | . . . 15 . . Core Remaining (%) 83 | 100 86 68 78 . . Volleys Fired 190 | . 20 75 38 4 53 Largest 3 | . 2 2 2 3 3 Hottest 159 | . 150 113 120 148 159 Shots Fired 329 | . 40 96 58 11 124 Gun 83 | . 38 21 . 3 21 Cannon 200 | . . 71 42 8 79 Launcher 44 | . . 4 16 . 24 Special 2 | . 2 . . . . Kinetic 62 | . 18 1 . 3 40 Thermal 203 | . 22 71 42 8 60 Explosive 44 | . . 4 16 . 24 Electromagnetic 20 | . . 20 . . . Robot Hit Streak 11 | . 6 7 8 4 11 Robot Miss Streak 6 | . 4 6 3 2 4 Penetration Max 1 | . . . . 1 . Secondary Targets . | . . . . . . Shots Hit Robots 254 | . 22 67 41 11 113 Core Hits 169 | . 6 38 36 5 84 Critical Kills 3 | . . 1 1 . 1 Critical Parts Destroyed 8 | . . 3 . . 5 Critical Strikes 16 | . 1 4 1 . 10 Burn 1 | . 1 . . . . Meltdown 1 | . . . 1 . . Destroy 2 | . . . . . 2 Smash 10 | . . 4 . . 6 Sever 2 | . . . . . 2 Melee Attacks 90 | . . 19 11 6 54 Impact 53 | . . 19 . . 34 Slashing 37 | . . . 11 6 20 Piercing . | . . . . . . Sneak Attacks 14 | . . 7 1 3 3 Combat Hostiles . | . . . . . . Follow-up Attacks 9 | . . . . . 9 Damage Inflicted 11552 | . 285 2393 2570 409 5895 Guns 811 | . 281 208 . 80 242 Cannons 2969 | . . 885 577 90 1417 Explosions 5134 | . . 686 1651 . 2797 Melee 2626 | . . 606 342 239 1439 Ramming 12 | . 4 8 . . . Kinetic 810 | . 143 17 . 80 570 Thermal 2779 | . 138 885 577 90 1089 Explosive 5134 | . . 686 1651 . 2797 Electromagnetic 191 | . . 191 . . . Impact 1674 | . . 606 . . 1068 Slashing 952 | . . . 342 239 371 Piercing . | . . . . . . Highest Corruption 8 | . . . . 2 8 Average Corruption 2 | . . . . 1 2 Corruption Purged . | . . . . . . Corruption Blocked . | . . . . . . Effects 20 | . . . . . 20 Message Errors 4 | . . . . . 4 Matter Fused 3 | . . . . . 3 Heat Flow Errors 3 | . . . . . 3 Energy Discharges 2 | . . . . . 2 Data Loss (minor) 4 | . . . . . 4 Data Loss (major) 1 | . . . . . 1 Misfires 2 | . . . . . 2 Weapon Failures 1 | . . . . . 1 Overload Shots . | . . . . . . Overflow Damage 742 | . . 199 44 64 435 Projectiles 57 | . . 11 . . 46 Explosions 136 | . . 38 44 . 54 Melee 549 | . . 150 . 64 335 Knockbacks 6 | . . 1 . . 5 Impact 3 | . . 1 . . 2 Kinetic 3 | . . . . . 3 Secondary . | . . . . . . Self-Inflicted Damage 420 | . . 125 . . 295 Shots 13 | . . 3 . . 10 Rammed 6 | . 4 2 . . . Targets Rammed 7 | . 5 2 . . . Kicked . | . . . . . . Crushed 1 | . 1 . . . . Highest Temperature 356 | . 162 285 342 135 356 Average Temperature 84 | . 58 72 106 60 94 Received Heat Transfer 1800 | . 117 138 270 45 1230 Effects 1 | . . . 1 . . Energy Bleed 1 | . . . 1 . . Siege Activations . | . . . . . . Martial Activations . | . . . . . . Shielding Activations . | . . . . . . Robots Disrupted . | . . . . . . Combat Hostiles . | . . . . . . Robots Corrupted 5 | . . 2 . . 3 Combat Hostiles 4 | . . 1 . . 3 Parts Fried 8 | . . 6 . . 2 Impact Corruptions 18 | . . 6 . . 12 Robots Melted 1 | . . . 1 . . Combat Hostiles 1 | . . . 1 . . Parts Melted 9 | . . 1 3 3 2 Heat Transferred 4725 | . 481 1443 925 148 1728 Parts Sabotaged . | . . . . . . Parts Stolen . | . . . . . . Parts Stripped . | . . . . . . Power Chain Reactions . | . . . . . . Alert | -11 -10 -9 -8 -7 -7 ------- Run | Yrd Mat Mat Mat Fac Sto Maximum Alert Level 2 | . . 1 1 . 2 Low Security (%) 52 | 100 100 38 20 100 42 Level 1 44 | . . 61 80 . 46 Level 2 2 | . . . . . 10 Level 3 . | . . . . . . Level 4 . | . . . . . . Level 5 . | . . . . . . High Security . | . . . . . . Max Security . | . . . . . . Peak Influence 479 | . 51 303 315 105 479 Initial 115 | . . . 115 105 . Average 158 | . 8 182 233 38 218 Influence Increases 2661 | . 110 802 463 89 1197 Destroy 0b10 Robot/C 1380 | . 60 440 220 20 640 Destroy 0b10 Robot/NC 230 | . 5 75 55 15 80 Destroy Leader 368 | . 20 114 58 . 176 Successful Hack 67 | . 8 29 15 8 7 Disable Machine 210 | . 15 45 30 30 90 Destroy Structure 301 | . 2 54 55 1 189 Lose Combat Pursuer 105 | . . 45 30 15 15 Influence Decreases 2212 | . 110 527 506 320 749 Entered New Map 288 | . . . 160 127 1 Time Decay 1594 | . 110 507 326 193 458 Lost Part 290 | . . 20 20 . 250 Lost Ally 40 | . . . . . 40 Squads Dispatched 28 | . 1 2 5 8 12 Investigation 3 | . . . 1 1 1 Extermination 4 | . . . . 2 2 Reinforcement 14 | . 1 2 4 2 5 Assault 2 | . . . . . 2 Garrison 5 | . . . . 3 2 Intercept . | . . . . . . Searches Triggered . | . . . . . . Construction Impeded 4 | . . . 1 . 3 Haulers Reinforced 1 | . . . . . 1 Active Scanning Responses . | . . . . . . Cargo Convoy Interrupts . | . . . . . . Stealth | -11 -10 -9 -8 -7 -7 --------- Run | Yrd Mat Mat Mat Fac Sto Distress Signals 12 | . 1 4 4 1 2 Communications Jammed . | . . . . . . Distress Signals . | . . . . . . Times Spotted 121 | . 10 39 21 6 45 Peak Tracking Total 10 | . 3 10 5 2 6 Tactical Retreats 7 | . . 3 2 1 1 Traps | -11 -10 -9 -8 -7 -7 ------- Run | Yrd Mat Mat Mat Fac Sto Traps Triggered 1 | . . . . . 1 Indirectly . | . . . . . . Trap Hack Attempts . | . . . . . . Triggered . | . . . . . . Disarmed . | . . . . . . Reprogrammed . | . . . . . . Reused . | . . . . . . Traps Extracted . | . . . . . . Installed . | . . . . . . Triggered . | . . . . . . Machines | -11 -10 -9 -8 -7 -7 ---------- Run | Yrd Mat Mat Mat Fac Sto Machines Disabled 14 | . 1 3 2 2 6 Max in Single Turn 2 | . 1 2 1 1 1 Machines Repaired . | . . . . . . Machines Dismantled . | . . . . . . Machines Sabotaged . | . . . . . . Overloaded Fab Kills . | . . . . . . Hacking | -11 -10 -9 -8 -7 -7 --------- Run | Yrd Mat Mat Mat Fac Sto Machines Accessed 18 | . 4 5 5 2 2 Terminals 12 | . 3 2 3 2 2 Fabricators . | . . . . . . Repair Stations 1 | . . . 1 . . Recycling Units 3 | . 1 2 . . . Scanalyzers 2 | . . 1 1 . . Garrison Access . | . . . . . . Total Hacks 34 | . 7 10 10 3 4 Successful 15 | . 4 5 4 1 1 Failed 19 | . 3 5 6 2 3 Catastrophic 7 | . 1 2 1 1 2 Database Lockouts . | . . . . . . Manual 11 | . . 3 5 3 . Terminals 23 | . 6 5 5 3 4 Fabricators . | . . . . . . Repair Stations 3 | . . . 3 . . Recycling Units 3 | . 1 2 . . . Scanalyzers 5 | . . 3 2 . . Garrison Access . | . . . . . . Terminal Hacks 7 | . 3 1 1 1 1 Open Door 1 | . . . . . 1 Level Access Points 1 | . 1 . . . . Branch Access Points 3 | . . 1 1 1 . Emergency Access Points 1 | . 1 . . . . Registered Components 1 | . 1 . . . . Fabricator Hacks . | . . . . . . Repair Station Hacks 2 | . . . 2 . . Scan Component 1 | . . . 1 . . Repair 1 | . . . 1 . . Recycling Unit Hacks 3 | . 1 2 . . . Retrieve Components 3 | . 1 2 . . . Scanalyzer 3 | . . 2 1 . . Insert Component 1 | . . 1 . . . Analyze 1 | . . 1 . . . Retrieve Study 1 | . . . 1 . . Garrison Access Hacks . | . . . . . . Unauthorized Hacks . | . . . . . . Terminals . | . . . . . . Fabricators . | . . . . . . Repair Stations . | . . . . . . Recycling Units . | . . . . . . Scanalyzers . | . . . . . . Garrison Access . | . . . . . . Data Cores Recovered 1 | . . 1 . . . Used . | . . . . . . Hacking Detections 13 | . 2 4 4 1 2 Full Trace Events 3 | . 1 . 1 . 1 Feedback Events . | . . . . . . Feedback Blocked . | . . . . . . Robot Schematics Acquired . | . . . . . . Robots Built . | . . . . . . Authchips . | . . . . . . Time . | . . . . . . Total Robot Build Rating . | . . . . . . Part Schematics Acquired 1 | . . 1 . . . Parts Built . | . . . . . . Authchips . | . . . . . . Time . | . . . . . . Total Part Build Rating . | . . . . . . Part Studies Acquired 1 | . . . 1 . . Parts Repaired 1 | . . . 1 . . Time 38 | . . . 38 . . Parts Recycled . | . . . . . . Recycled Matter . | . . . . . . Retrieved Matter . | . . . . . . Retrieved Components 16 | . 7 9 . . . Parts Scanalyzed 1 | . . 1 . . . Part Schematics Acquired 1 | . . 1 . . . Parts Damaged . | . . . . . . Bothacking | -11 -10 -9 -8 -7 -7 ------------ Run | Yrd Mat Mat Mat Fac Sto Used RIF Installer . | . . . . . . Robots Hacked . | . . . . . . Non-combat . | . . . . . . Combat . | . . . . . . Robot Hacks Applied . | . . . . . . Relay Couplers Released . | . . . . . . Fabnet Peak Effective % . | . . . . . . Robots Rewired . | . . . . . . Allies Hacked . | . . . . . . Hacks Repelled . | . . . . . . Allies | -11 -10 -9 -8 -7 -7 -------- Run | Yrd Mat Mat Mat Fac Sto Total Allies 2 | . . . . . 2 Largest Group 2 | . . . . . 2 Highest-Rated Group 62 | . . . . . 62 Highest-Rated Ally 31 | . . . . . 31 Total Orders . | . . . . . . Ally Attacks 4 | . . . . . 4 Total Damage 83 | . . . . . 83 Kills 1 | . . . . . 1 Allies Corrupted . | . . . . . . Allies Melted . | . . . . . . Intel | -11 -10 -9 -8 -7 -7 ------- Run | Yrd Mat Mat Mat Fac Sto Active Infowar (turns) 3257 | . 500 981 735 495 546 Sensors 3257 | . 500 981 735 495 546 Robot Analysis Total . | . . . . . . Derelict Logs Recovered . | . . . . . . Drone Launches . | . . . . . . Drone Recoveries . | . . . . . . Exploration | -11 -10 -9 -8 -7 -7 ------------- Run | Yrd Mat Mat Mat Fac Sto Turns Passed 4649 | 91 605 1489 735 495 1234 Spaces Moved 2019 | 55 300 617 320 244 483 Core 8 | 6 . . . . 2 Treads 2011 | 49 300 617 320 244 481 Legs . | . . . . . . Wheels . | . . . . . . Hover . | . . . . . . Flight . | . . . . . . Fastest Speed 50 | 50 160 160 160 160 145 Average Speed 168 | 148 160 175 160 160 175 Slowest Speed 300 | 160 160 240 160 160 300 Overloaded Moves . | . . . . . . Propulsion Burnouts . | . . . . . . Robots Hopped . | . . . . . . Potential Cave-ins 1 | . . . . . 1 Cave-ins Triggered . | . . . . . . Exploration Rate (%) 37 | 4 57 61 29 11 64 Regions Visited 5 Branch Regions 1 Pre-discovered Areas . | . . . . . . Known Exits Taken 4 | . 1 1 1 1 . Unknown Exits Taken 1 | 1 . . . . . Scrap Searched . | . . . . . . Spaces Dug 2 | . . 2 . . . Terrain Destroyed 364 | . . 57 61 . 246 Melee 2 | . . 2 . . . Projectile 20 | . . 5 5 . 10 AOE 342 | . . 50 56 . 236 Terrain Rammed . | . . . . . . Walls Destroyed . | . . . . . . Machines Disabled . | . . . . . . Actions | -11 -10 -9 -8 -7 -7 --------- Run | Yrd Mat Mat Mat Fac Sto Total 2829 | 61 381 898 468 336 685 Wait 342 | . 24 136 67 63 52 Move 2014 | 54 299 616 319 243 483 Hop . | . . . . . . Pick Up 54 | . 20 13 7 6 8 Fast Attach 24 | 6 1 3 3 2 9 Attach 15 | . . 4 3 . 8 Detach . | . . . . . . Swap 52 | 1 4 13 12 5 17 Drop 51 | . 8 17 8 7 11 Fire 190 | . 20 75 38 4 53 Melee 80 | . . 19 11 6 44 Ram . | . . . . . . Kick . | . . . . . . Crush 7 | . 5 2 . . . Escape Stasis . | . . . . . . Rewire . | . . . . . . Trap . | . . . . . . Miscellaneous . | . . . . . . Route ------- -11/Scrapyard -10/Materials (discovered 5 exits: *Mat x3 / [*Min x2]) -9/Materials (discovered 2 exits: *Mat / *Min) -8/Materials -7/Factory (discovered 3 exits: *Sto / Low x2) -7/Storage (discovered 1 exit: [*Fac]) History --------- Turn | Location | Event 3 | -11/Scrapyard | Discovered new exit (range 14) 92 | -11/Scrapyard | Entered Materials 136 | -10/Materials | Identified exit to Materials 276 | -10/Materials | Discovered new exit (range 9) 318 | -10/Materials | Build established: Mutant 600 | -10/Materials | Discovered new exit (range 8) 697 | -10/Materials | Entered another Materials area 697 | -9/Materials | Evolved 2 slots: Utility x2 865 | -9/Materials | Identified exit to Mines 1070 | -9/Materials | Destroyed 7 combat bots 2093 | -9/Materials | Discovered new exit (range 14) 2184 | -9/Materials | Identified exit to Materials 2186 | -9/Materials | Entered another Materials area 2186 | -8/Materials | Evolved 2 slots: Propulsion x1, Utility x1 2362 | -8/Materials | Met 7R-MNS 2534 | -8/Materials | Repaired Katana 2553 | -8/Materials | Discovered new exit (range 16) 2659 | -8/Materials | Identified exit to Factory 2921 | -8/Materials | Entered Factory 2921 | -7/Factory | Evolved 2 slots: Power x1, Weapon x1 2922 | -7/Factory | Caught up to 7R-MNS 3001 | -7/Factory | Garrison activated, responded to threat 3228 | -7/Factory | Identified exit to Storage 3228 | -7/Factory | Identified exit to Lower Caves 3416 | -7/Factory | Entered Storage 3878 | -7/Storage | Garrison activated, responded to threat 4186 | -7/Storage | Met a pair of Derelict thieves 4313 | -7/Storage | Lost 4 parts (3u1w) 4427 | -7/Storage | Core integrity fell below 50% 4580 | -7/Storage | Discovered new exit (range 16) 4605 | -7/Storage | Garrison activated, responded to threat 4641 | -7/Storage | Core integrity fell below 20% 4650 | -7/Storage | Destroyed by Y-54 Guardian with Gatling Laser Last Messages --------------- 04634_ Adv. Treads destroyed. 04634_ Destroyed Shock Rifle. 04634_ Door Terminal disabled. 04634_ Destroyed Gravmag System. 04636_ System corrupted: Component data lost. 04636_ Hvy. Rocket Launcher destroyed. 04638_ Destroyed Imp. Heat Sink. 04638_ Destroyed Gravmag System. 04638_ G-47 Trooper destroyed. 04638_ Destroyed Imp. Heat Sink. 04639_ Adv. Assault Cannon destroyed. 04640_ P-60 Hacker destroyed. 04643_ Adv. Treads destroyed. 04643_ Dropped Lrg. Storage Unit. 04645_ Y-54 Guardian destroyed. 04646_ Dropped Arm. Treads. 04648_ R-06 Scavenger collects Flak Gun. 04649_ Hvy. Rocket Launcher destroyed. 04649_ Weapon Cycler destroyed. 04650_ Acquired Hacking Suite. Map ----- +----------------------------------------------------+ | | | | | | | | | | | | | | | | | | | ????????????????????????????????????????? | | ????????????????????????????????????????? | | ?????????###????????????????????????????? | | ????????#""#????????????????????????????? | | ???######T"######???????????????????????? | | ???# # ???????????????????????? | | ???# # ""?????????????????????? | | ???# # ""?????????????????????? | | ???# < + ""?????????????????????? | | ???# # ?????????????????????? | | ??## # ??????????????????????? | | ?## ??????????????????????? | | ?# ??????????????????????? | | # g%= = ??????????????????????? | | ?# !][###????????????????????? | | ?# %Y]=!#?????????##"#???????? | | ?# Y@###?????????#T #???????? | | ?# r !=#?###########+#### #### | | ??## ## # + | | ???# ### # # """ "" | | ???# " ?# " " + # """ "" | | ???# # " ###?"="""" # # """ "? | | ???# + """ #?# "!""]" + +? ? | | ???# # """ #?# "/ " # #?? ? | | ???# # """ #?# """" " # #?? | | ???# # #?# " " #^^ #??? | | ???# # ??? #?# # #???###? | | ???# ##???#####?### ## ####???? | | ???# #?????????#### # ## # ##### | | ???# "#????????# # #! | | ???# ##????????# ! " | | #### ####??????# ! = | | # "" + "??????# " % " | | #"G # "??????# "[ [% # == | | # "" # "??????# = % # # = = | | #### # T???????# = ##### | | ??## ####??????# = ##???? | | ??## # #??????### # #????? | | ?### ##????????### ##????? | | ?# #??????????## # ## #????? | | ?## #???????????## # # ###### | +----------------------------------------------------+ Best States ------------- Heat Dissipation 48 Energy Generation 25 Energy Capacity 470 Matter Stores 300 Matter Capacity 300 Sight Range 16 Robot Scan Range 15 Terrain Scan Density 10 Armor Coverage 375 Core Shielding 20 Utility Shielding 33 Weapon Shielding 66 Weapon Cycling 15 Evasion (%) 40 Armor Integrity Analysis 30 Recoil Reduction 3 Energy Filtering 30 Item Schematics ----------------- Hacking Suite | -9/Materials | Scanalyzed Robot Schematics ------------------ None Fabricated ------------ Nothing Repaired ---------- Katana | 70% | -8/Materials Studied --------- VTOL Module | -8/Materials | Hacked Alien Tech Used ----------------- None Achievements -------------- None Challenges ------------ None Game ------ Seed OmegaScrapoidBotcube Manual? 0 Play Time 00:36:05 Cumulative 107.5 hours Start 2026.03.11 @ 09:40:49 End 2026.03.12 @ 13:56:51 Sessions 2 Manual Loads 0 Difficulty Rogue Special Mode None Game No. 161 Rogue 161 Adventurer 0 Explorer 0 Win Type - Total 1 Types 1/0/0/0/0/0/0/0/0/0 Lore% 50 Gallery% 51 Achievement% 37 Wizard Run 0 Options --------- Layout 1 ASCII 0 Keyboard 1 Movement Arrows Keybinds 0 Fullscreen 1 Font 24/Smallcaps Map View 50x35 Zoom Use 0% Tactical HUD 1 Map Filters NONE Filters NONE Steam 1 RUN: bd6962e7-91d2-4d39-8712-9f2b213daa0e